bitfinex/quotes_BTCUSD_20241124
["timestamp","ask_amount","ask_price","bid_price","bid_amount"]
[1732459585800,0.103229,96872.0,96871.0,0.01964716]
[1732459586478,0.103229,96872.0,96871.0,0.29689197]
[1732459586694,0.2819728,96874.0,96870.0,0.27725105]
[1732459586695,0.0755178,96874.0,96870.0,0.27725105]
[1732459586897,0.1258,96873.0,96868.0,0.27725105]
[1732459587104,0.1258,96873.0,96864.0,0.0008575]
[1732459587105,0.103232,96869.0,96865.0,0.01964716]
[1732459587321,0.20646,96871.0,96864.0,0.0008575]
[1732459587322,0.20646,96871.0,96867.0,0.27725672]
[1732459587541,0.181233,96868.0,96867.0,0.27725672]
[1732459587752,0.078,96868.0,96866.0,0.29690388]
[1732459587961,0.078,96866.0,96864.0,0.27811422]
[1732459588218,0.181236,96865.0,96864.0,0.0008575]
[1732459589444,0.078,96865.0,96864.0,0.02250466]
[1732459589646,0.078,96865.0,96864.0,0.38235138]
[1732459589866,0.078,96873.0,96864.0,0.12451893]
[1732459590085,0.078,96873.0,96872.0,0.002]
[1732459590258,0.181227,96873.0,96872.0,0.002]
[1732459590447,0.181227,96873.0,96870.0,0.002]
[1732459590448,0.078,96873.0,96870.0,0.002]
[1732459590659,0.078,96873.0,96872.0,0.002]
[1732459590871,0.181227,96873.0,96872.0,0.02164716]
[1732459591050,0.181227,96873.0,96872.0,0.01964716]
[1732459591450,0.181227,96873.0,96872.0,0.29676393]
[1732459591656,0.103229,96872.0,96871.0,0.29676393]
[1732459591856,0.284457,96873.0,96870.0,0.01964716]
[1732459592058,0.078,96873.0,96870.0,0.01964716]
[1732459592274,0.078,96873.0,96872.0,0.002]
[1732459592495,0.181227,96873.0,96872.0,0.002]
[1732459592697,0.181227,96873.0,96872.0,0.02164716]
[1732459592698,0.078,96873.0,96872.0,0.02164716]
[1732459592901,0.0008575,96874.0,96873.0,0.10422916]
[1732459593110,0.0008575,96874.0,96873.0,0.55727556]
[1732459593337,0.0008575,96874.0,96873.0,0.55624343]
[1732459594620,0.0008575,96874.0,96873.0,0.55424343]
[1732459594913,0.0008575,96874.0,96873.0,0.55624343]
[1732459595440,0.0008575,96874.0,96873.0,0.58642262]
[1732459595872,0.0008575,96874.0,96873.0,0.55624343]
[1732459596530,0.00050218,96874.0,96873.0,0.55624343]
[1732459597761,0.00050218,96874.0,96873.0,0.75624343]
[1732459598067,0.00050218,96874.0,96873.0,0.81142585]
[1732459598272,0.00050218,96874.0,96873.0,0.81472585]
[1732459598554,1.8e-07,96878.0,96877.0,0.65622516]
[1732459598809,1.8e-07,96878.0,96877.0,0.81142185]
[1732459599500,1.8e-07,96878.0,96877.0,1.30628513]
[1732459599997,1.8e-07,96878.0,96877.0,0.80742185]
[1732459600955,0.001717,96891.0,96890.0,0.50221416]
[1732459601173,0.001717,96891.0,96890.0,0.80741085]
[1732459601388,0.001717,96891.0,96890.0,0.80941085]
[1732459601623,0.001717,96891.0,96890.0,0.80741085]
[1732459602084,0.001717,96891.0,96890.0,0.80941085]
[1732459602304,0.001717,96891.0,96890.0,0.80741085]
[1732459602744,0.001717,96891.0,96890.0,0.80941085]
[1732459602979,0.001717,96891.0,96890.0,0.80741085]
[1732459603267,0.001717,96891.0,96890.0,1.12267356]
[1732459603497,0.001717,96891.0,96890.0,0.81141085]
[1732459603728,0.00136168,96891.0,96890.0,0.80741085]
[1732459603959,6.8e-07,96891.0,96890.0,0.85137581]
[1732459604477,0.0008582,96926.0,96925.0,0.44256602]
[1732459604683,0.0008582,96926.0,96925.0,0.54458029]
[1732459605346,0.0008582,96926.0,96925.0,0.82099944]
[1732459605603,0.0008582,96926.0,96925.0,0.54458029]
[1732459606482,0.0008582,96926.0,96925.0,0.74658029]
[1732459606716,0.0008582,96926.0,96925.0,0.74458029]
[1732459606943,0.0008582,96926.0,96925.0,0.77158029]
[1732459607189,0.0008582,96926.0,96925.0,0.76758029]
[1732459607406,2e-07,96926.0,96925.0,0.76758029]
[1732459607633,2e-07,96926.0,96925.0,0.77158029]
[1732459607856,0.078,96956.0,96946.0,0.41002802]
[1732459608066,0.078,96956.0,96946.0,1.17717978]
[1732459608299,0.078,96956.0,96946.0,0.76956229]
[1732459608518,0.078,96956.0,96946.0,0.74656229]
[1732459608766,0.078,96956.0,96946.0,0.74456229]
[1732459609282,0.078,96956.0,96946.0,0.74656229]
[1732459609944,0.078,96956.0,96946.0,0.74456229]
[1732459610632,0.078,96956.0,96946.0,0.74656229]
[1732459611103,0.0017178,96961.0,96946.0,0.74456229]
[1732459611371,0.0797178,96961.0,96946.0,0.74456229]
[1732459611599,0.0797178,96961.0,96946.0,0.74656229]
[1732459611826,0.0797178,96961.0,96946.0,0.74456229]
[1732459612044,0.0797178,96961.0,96946.0,0.54656229]
[1732459612489,0.0797178,96961.0,96946.0,0.7758292]
[1732459612709,0.0797178,96961.0,96946.0,0.54456229]
[1732459612931,0.129218,96947.0,96946.0,0.35418143]
[1732459613864,0.129218,96947.0,96946.0,0.27166143]
[1732459614096,0.129218,96947.0,96946.0,0.35418143]
[1732459614804,0.129218,96947.0,96946.0,0.01964716]
[1732459615294,0.129218,96947.0,96946.0,0.10216716]
[1732459616030,0.129218,96947.0,96946.0,0.25416716]
[1732459617049,0.129218,96947.0,96946.0,0.35618143]
[1732459618540,0.129218,96947.0,96946.0,0.01964716]
[1732459619013,0.129218,96947.0,96946.0,0.25216716]
[1732459619268,0.129218,96947.0,96946.0,0.01964716]
[1732459619912,0.129218,96947.0,96946.0,0.10216716]
[1732459620132,0.129218,96947.0,96946.0,0.01964716]
[1732459620353,0.232367,96947.0,96946.0,0.02164716]
[1732459620554,0.129218,96947.0,96946.0,0.01964716]
[1732459621013,0.27250733,96947.0,96946.0,0.01964716]
[1732459621220,0.16935833,96947.0,96946.0,0.01964716]
[1732459621423,0.232367,96947.0,96946.0,0.01964716]
[1732459621665,0.129218,96947.0,96940.0,0.01964716]
[1732459621903,0.230659,96937.0,96936.0,0.01964716]
[1732459622144,0.1275,96937.0,96930.0,0.10201427]
[1732459622388,0.23066,96937.0,96936.0,0.01964716]
[1732459622804,0.1275,96937.0,96936.0,0.01964716]
[1732459623019,0.1275,96937.0,96933.0,0.01964716]
[1732459623247,0.1275,96937.0,96925.0,0.001714]
[1732459623248,0.103167,96930.0,96929.0,0.01964716]
[1732459623458,0.103171,96926.0,96925.0,0.02136116]
[1732459623703,0.103171,96926.0,96925.0,0.001714]
[1732459623704,0.233271,96926.0,96925.0,0.001714]
[1732459623963,0.24289014,96926.0,96925.0,0.001714]
[1732459624199,0.150084,96914.0,96913.0,0.01964716]
[1732459624420,0.150084,96914.0,96909.0,0.01964716]
[1732459624421,0.103188,96910.0,96909.0,0.01964716]
[1732459624635,0.103188,96910.0,96885.0,0.10201427]
[1732459624636,0.1301,96914.0,96905.0,0.01964716]
[1732459624846,0.201718,96947.0,96895.0,0.01964716]
[1732459624847,0.206387,96905.0,96895.0,0.01964716]
[1732459625124,0.103208,96891.0,96890.0,0.01964716]
[1732459625366,0.103208,96891.0,96877.0,0.05]
[1732459625367,0.103214,96886.0,96885.0,0.01964716]
[1732459625576,0.0832,96886.0,96885.0,0.002]
[1732459625807,0.0832,96886.0,96885.0,0.10421916]
[1732459627092,0.0832,96886.0,96885.0,0.10221916]
[1732459627313,0.0832,96886.0,96885.0,0.10421916]
[1732459627524,0.103215,96885.0,96884.0,0.01964716]
[1732459627739,0.0832,96886.0,96884.0,0.01964716]
[1732459627959,0.0832,96886.0,96885.0,0.002]
[1732459628180,0.0832,96886.0,96885.0,0.10421916]
[1732459628662,0.0832,96886.0,96885.0,0.02164716]
[1732459628942,0.0832,96886.0,96885.0,0.10421916]
[1732459629354,0.0832,96886.0,96885.0,0.02164716]
[1732459629778,0.0832,96886.0,96885.0,0.10421916]
[1732459630434,0.0469,96891.0,96890.0,0.10421416]
[1732459631252,0.0832,96896.0,96895.0,0.10221016]
[1732459631483,0.0832,96896.0,96895.0,0.10421016]
[1732459631692,0.0469,96904.0,96903.0,0.082556]
[1732459631939,0.0469,96904.0,96903.0,0.10420316]
[1732459633089,0.103199,96900.0,96899.0,0.01964716]
[1732459633317,0.0832,96893.0,96890.0,0.01964716]
[1732459633541,0.0832,96893.0,96892.0,0.10421316]
[1732459633757,0.0832,96893.0,96892.0,0.02164716]
[1732459634192,0.0832,96893.0,96889.0,0.01964716]
[1732459634409,0.21603614,96891.0,96879.0,0.01964716]
[1732459634614,0.21603614,96891.0,96859.0,0.27469111]
[1732459634615,0.103216,96884.0,96883.0,0.01964716]
[1732459634852,0.103216,96884.0,96872.0,0.10372907]
[1732459634853,0.00961914,96891.0,96880.0,0.01964716]
[1732459635066,0.21603814,96890.0,96884.0,0.01964716]
[1732459635295,0.103219,96881.0,96880.0,0.01964716]
[1732459635513,0.10321,96889.0,96886.0,0.002]
[1732459635716,0.00961914,96890.0,96880.0,0.10222316]
[1732459635915,0.103215,96885.0,96880.0,0.10222316]
[1732459636359,0.00961914,96890.0,96889.0,0.002]
[1732459636580,0.00961914,96890.0,96889.0,0.01964716]
[1732459636999,0.0469,96892.0,96891.0,0.084567]
[1732459637209,0.0469,96892.0,96891.0,0.20622843]
[1732459638088,0.0469,96905.0,96904.0,0.082555]
[1732459638524,0.0469,96905.0,96903.0,0.02164716]
[1732459638766,0.0469,96905.0,96904.0,0.10220216]
[1732459639230,0.0832,96917.0,96916.0,0.084545]
[1732459639441,0.0832,96917.0,96916.0,0.10419216]
[1732459639655,0.0832,96917.0,96916.0,0.01964716]
[1732459639865,0.186381,96917.0,96916.0,0.01964716]
[1732459640325,0.0832,96917.0,96907.0,0.01964716]
[1732459640551,0.0469,96899.0,96895.0,0.01964716]
[1732459640773,0.103203,96896.0,96895.0,0.18378258]
[1732459640991,0.00961914,96892.0,96891.0,0.18378258]
[1732459641201,0.00961914,96889.0,96888.0,0.18378258]
[1732459641417,0.00961914,96887.0,96886.0,0.18380684]
[1732459641630,0.11283314,96886.0,96885.0,0.002]
[1732459641870,0.00961914,96886.0,96885.0,0.002]
[1732459642075,0.11283314,96886.0,96885.0,0.002]
[1732459642287,0.00961914,96886.0,96884.0,0.01964716]
[1732459642494,0.103215,96885.0,96884.0,0.01964716]
[1732459642705,0.00961914,96886.0,96884.0,0.01964716]
[1732459643113,0.103215,96885.0,96884.0,0.01964716]
[1732459643321,0.11283314,96886.0,96884.0,0.01964716]
[1732459643538,0.00961914,96886.0,96884.0,0.01964716]
[1732459643751,0.0832,96898.0,96897.0,0.01964716]
[1732459643752,0.09281914,96898.0,96897.0,0.01964716]
[1732459643999,0.0832,96898.0,96897.0,0.02164716]
[1732459644535,0.0832,96898.0,96897.0,0.10420816]
[1732459646399,0.0832,96898.0,96897.0,0.10379921]
[1732459649573,0.0832,96898.0,96897.0,0.01923821]
[1732459649793,0.0832,96898.0,96897.0,0.10379921]
[1732459650199,0.0832,96898.0,96897.0,0.02123821]
[1732459650605,0.0832,96898.0,96894.0,0.01923821]
[1732459650606,0.103204,96895.0,96894.0,0.01923821]
[1732459650821,0.103209,96890.0,96889.0,0.001714]
[1732459651025,0.11282814,96890.0,96889.0,0.001714]
[1732459651445,0.11282814,96890.0,96889.0,0.003714]
[1732459651662,0.11282814,96890.0,96889.0,0.001714]
[1732459652281,0.24062814,96890.0,96889.0,0.001714]
[1732459653610,0.24062814,96890.0,96889.0,0.003714]
[1732459653825,0.231009,96890.0,96889.0,0.003714]
[1732459654047,0.24062814,96890.0,96889.0,0.003714]
[1732459655379,0.24062814,96890.0,96889.0,0.02295221]
[1732459655587,0.24062814,96890.0,96889.0,0.001714]
[1732459656234,0.24062814,96890.0,96872.0,0.0017148]
[1732459656235,0.11284614,96873.0,96872.0,0.0017148]
[1732459656440,0.24064614,96873.0,96872.0,0.0017148]
[1732459657715,0.34266041,96873.0,96872.0,0.0017148]
[1732459657933,0.11285514,96865.0,96850.0,0.01923821]
[1732459658389,0.24065514,96865.0,96849.0,0.0028589]
[1732459658613,0.103252,96850.0,96849.0,0.0028589]
[1732459659038,0.11287114,96850.0,96849.0,0.0028589]
[1732459659948,0.1278,96865.0,96862.0,0.082591]
[1732459660184,0.13741914,96865.0,96855.0,0.002]
[1732459660399,0.103246,96856.0,96855.0,0.01923821]
[1732459660611,0.00961914,96857.0,96850.0,0.18396009]
[1732459660851,0.103251,96851.0,96850.0,0.01923821]
[1732459661063,0.00961914,96857.0,96856.0,0.01923821]
[1732459661263,0.11286314,96857.0,96856.0,0.02123821]
[1732459661717,0.11286314,96857.0,96856.0,0.01923821]
[1732459661718,0.00961914,96857.0,96856.0,0.01923821]
[1732459661950,0.1278,96865.0,96864.0,0.02123821]
[1732459662166,0.1278,96865.0,96864.0,0.10382821]
[1732459662386,0.1278,96865.0,96864.0,0.02123821]
[1732459662800,0.13741914,96865.0,96864.0,0.02123821]
[1732459663026,0.24065514,96865.0,96864.0,0.02123821]
[1732459663236,0.24065514,96865.0,96862.0,0.01923821]
[1732459663237,0.00961914,96863.0,96862.0,0.01923821]
[1732459663450,0.11285714,96863.0,96861.0,0.01923821]
[1732459663685,0.11285914,96861.0,96860.0,0.01923821]
[1732459664559,0.11185914,96861.0,96860.0,0.01923821]
[1732459665418,0.11085914,96861.0,96860.0,0.01923821]
[1732459666265,0.00661914,96861.0,96860.0,0.10383121]
[1732459666477,0.00661914,96861.0,96860.0,0.01923821]
[1732459666692,0.10985914,96861.0,96860.0,0.01923821]
[1732459667349,0.103249,96853.0,96852.0,0.01923821]
[1732459667608,0.206492,96856.0,96848.0,0.23032066]
[1732459667609,0.103252,96850.0,96849.0,0.18711543]
[1732459667824,0.103252,96850.0,96849.0,0.0028589]
[1732459668035,0.10987114,96850.0,96849.0,0.0028589]
[1732459671220,0.10987114,96850.0,96849.0,0.0008589]
[1732459671438,0.19007114,96850.0,96849.0,0.0008589]
[1732459671870,0.23787114,96850.0,96849.0,0.0008589]
[1732459673156,0.23787114,96850.0,96849.0,0.02009711]
[1732459675569,0.13461914,96850.0,96849.0,0.02009711]
[1732459676430,0.0810576,96861.0,96857.0,0.01923821]
[1732459676665,0.1842976,96861.0,96860.0,0.01923821]
[1732459676885,0.0810576,96861.0,96860.0,0.01923821]
[1732459677128,0.1842976,96861.0,96860.0,0.01923821]
[1732459677333,0.19091674,96861.0,96860.0,0.01923821]
[1732459677536,0.1842976,96861.0,96860.0,0.01923821]
[1732459677747,0.19091674,96861.0,96860.0,0.01923821]
[1732459677953,0.1842976,96861.0,96860.0,0.01923821]
[1732459678165,0.19091674,96861.0,96860.0,0.01923821]
[1732459678397,0.1842976,96861.0,96860.0,0.01923821]
[1732459679684,0.19091674,96861.0,96860.0,0.01923821]
[1732459679812,0.1842976,96861.0,96860.0,0.01923821]
[1732459680836,0.19091674,96861.0,96860.0,0.01923821]
[1732459681042,0.08767674,96861.0,96860.0,0.01923821]
[1732459681263,0.19091674,96861.0,96860.0,0.01923821]
[1732459683286,0.1842976,96861.0,96860.0,0.01923821]
[1732459683490,0.08767674,96861.0,96860.0,0.01923821]
[1732459683692,0.04830587,96861.0,96860.0,0.10383121]
[1732459685076,0.04830587,96861.0,96860.0,0.02123821]
[1732459685387,0.04830587,96861.0,96860.0,0.10383121]
[1732459686317,0.0008576,96861.0,96860.0,0.20584548]
[1732459686627,0.0008576,96861.0,96860.0,0.2068778]
[1732459687014,0.0008576,96861.0,96860.0,0.48341768]
[1732459687263,0.0008576,96861.0,96860.0,0.20584548]
[1732459687473,0.0008576,96861.0,96860.0,0.20687773]
[1732459688167,0.0008576,96861.0,96860.0,0.20584548]
[1732459688478,0.0008576,96861.0,96860.0,0.48244113]
[1732459688675,0.0008576,96861.0,96860.0,0.20584548]
[1732459689115,0.0008576,96861.0,96860.0,0.12325248]
[1732459690044,0.0008576,96861.0,96860.0,0.20584548]
[1732459691076,0.0008576,96861.0,96860.0,0.2068778]
[1732459691874,0.0008576,96861.0,96860.0,0.43711867]
[1732459692126,0.0008576,96861.0,96860.0,0.43608635]
[1732459692505,0.0008576,96861.0,96860.0,0.47706825]
[1732459692714,0.0008576,96861.0,96860.0,0.50006825]
[1732459693693,0.00058813,96861.0,96860.0,0.80916184]
[1732459693903,0.00058813,96861.0,96860.0,0.49806825]
[1732459694101,0.00058813,96861.0,96860.0,0.84544911]
[1732459695025,0.00058813,96861.0,96860.0,0.84344911]
[1732459695543,0.00058813,96861.0,96860.0,0.65006825]
[1732459696043,0.00058813,96861.0,96860.0,1.15667598]
[1732459696295,0.00058813,96861.0,96860.0,1.15667429]
[1732459696538,0.00058813,96861.0,96860.0,0.84516451]
[1732459696770,0.00661914,96888.0,96887.0,0.10180821]
[1732459696994,0.00661914,96888.0,96887.0,0.10380821]
[1732459697687,0.0008572,96897.0,96887.0,0.10380821]
[1732459697688,0.00661914,96892.0,96891.0,0.002]
[1732459698201,0.00661914,96892.0,96891.0,0.10380521]
[1732459698428,0.0008572,96897.0,96892.0,0.10380421]
[1732459698662,0.0008572,96897.0,96892.0,0.20581848]
[1732459699127,0.0008572,96897.0,96896.0,0.10180021]
[1732459699357,0.0008572,96897.0,96896.0,0.20381448]
[1732459699589,0.0008572,96897.0,96896.0,0.48166815]
[1732459699815,0.0008572,96897.0,96896.0,0.20381448]
[1732459700044,0.0008572,96897.0,96896.0,0.20581448]
[1732459700279,0.00747634,96897.0,96896.0,0.20581448]
[1732459701275,0.0008572,96897.0,96896.0,0.20684636]
[1732459701480,0.0008572,96897.0,96896.0,0.20684634]
[1732459703140,0.00747634,96897.0,96896.0,0.20684634]
[1732459703384,0.00747634,96897.0,96896.0,0.20581448]
[1732459704075,0.0008572,96897.0,96896.0,0.20581448]
[1732459704757,0.00747634,96897.0,96896.0,0.20684633]
[1732459705029,0.0008572,96897.0,96896.0,0.20581448]
[1732459705242,0.00747634,96897.0,96896.0,0.20581448]
[1732459705955,0.0008572,96897.0,96896.0,0.20581448]
[1732459706191,0.0008572,96897.0,96896.0,0.48326939]
[1732459706415,0.0008572,96897.0,96896.0,0.48223754]
[1732459706674,0.0008572,96897.0,96896.0,0.20581448]
[1732459710986,0.0008572,96897.0,96896.0,0.48197336]
[1732459711203,0.0008572,96897.0,96896.0,0.20581448]
[1732459711409,0.0008572,96897.0,96896.0,0.48196251]
[1732459711615,0.0008572,96897.0,96896.0,0.20581448]
[1732459714269,0.0008572,96897.0,96896.0,0.20581448]
[1732459715605,0.0008572,96897.0,96896.0,0.20513356]
[1732459716040,0.0008572,96897.0,96896.0,0.48126461]
[1732459716502,0.0008572,96897.0,96896.0,0.20513356]
[1732459718259,0.0008572,96897.0,96896.0,0.20313356]
[1732459718458,0.0008572,96897.0,96896.0,0.20513356]
[1732459719803,0.0008572,96897.0,96896.0,0.48137593]
[1732459720005,0.0008572,96897.0,96896.0,0.20513356]
[1732459720207,0.0008572,96897.0,96896.0,0.48137593]
[1732459720857,0.0008572,96897.0,96896.0,0.20513356]
[1732459721286,0.00661914,96902.0,96896.0,0.20513356]
[1732459721287,0.00621537,96902.0,96901.0,0.10179621]
[1732459721494,0.00621537,96902.0,96901.0,0.20581048]
[1732459722118,0.00621537,96902.0,96901.0,0.12325248]
[1732459722349,0.00621537,96902.0,96901.0,0.20581048]
[1732459722556,0.10941237,96902.0,96901.0,0.12125248]
[1732459722766,0.10941737,96897.0,96896.0,0.01923821]
[1732459722986,0.08331537,96892.0,96890.0,0.27634689]
[1732459723188,0.00621537,96890.0,96888.0,0.27634689]
[1732459723456,0.00621537,96888.0,96886.0,0.2955851]
[1732459723688,0.10942837,96887.0,96886.0,0.01923821]
[1732459724167,0.10942837,96887.0,96886.0,0.02123821]
[1732459724424,0.10942837,96887.0,96886.0,0.23043049]
[1732459724685,0.00621537,96882.0,96878.0,0.27634689]
[1732459724919,0.10943937,96876.0,96875.0,0.01923821]
[1732459725202,0.05221537,96876.0,96872.0,0.1844202]
[1732459725428,0.10944937,96867.0,96866.0,0.23051834]
[1732459725659,0.10944937,96867.0,96861.0,0.02095361]
[1732459725660,0.08131537,96864.0,96861.0,0.02095361]
[1732459725880,0.10945437,96862.0,96861.0,0.02095361]
[1732459726859,0.10945437,96862.0,96861.0,0.0017154]
[1732459727091,0.22577721,96862.0,96861.0,0.23228392]
[1732459727336,0.27177721,96862.0,96861.0,0.0017154]
[1732459728191,0.42177721,96862.0,96861.0,0.0017154]
[1732459728834,0.27177721,96862.0,96861.0,0.0017154]
[1732459729045,0.23055437,96862.0,96861.0,0.0017154]
[1732459731354,0.38055437,96862.0,96861.0,0.0017154]
[1732459731588,0.23056737,96850.0,96849.0,0.0008589]
[1732459735400,0.23056737,96850.0,96849.0,0.0028589]
[1732459736610,0.224352,96850.0,96849.0,0.0028589]
[1732459736848,0.1211,96850.0,96849.0,0.0028589]
[1732459737081,0.23056737,96850.0,96849.0,0.0028589]
[1732459737335,0.1211,96850.0,96849.0,0.0028589]
[1732459737583,0.1211,96850.0,96849.0,0.02209711]
[1732459737840,0.0751,96850.0,96849.0,0.10269911]
[1732459738089,0.00621537,96850.0,96849.0,0.02009711]
[1732459738338,0.00621537,96850.0,96849.0,0.10469911]
[1732459738792,0.0751,96857.0,96849.0,0.02009711]
[1732459739042,0.00621537,96854.0,96853.0,0.002]
[1732459739291,0.00621537,96854.0,96853.0,0.02123821]
[1732459739535,0.0751,96857.0,96853.0,0.02123821]
[1732459739749,0.0751,96857.0,96854.0,0.002]
[1732459739960,0.00621537,96855.0,96854.0,0.01923821]
[1732459740206,0.10946237,96855.0,96854.0,0.01923821]
[1732459740685,0.281591,96857.0,96850.0,0.002]
[1732459740686,0.10946637,96851.0,96850.0,0.002]
[1732459740932,0.2065,96853.0,96849.0,0.0008589]
[1732459740933,0.10946737,96850.0,96849.0,0.0008589]
[1732459741205,0.23056737,96850.0,96849.0,0.0008589]
[1732459742624,0.27169129,96850.0,96849.0,0.0008589]
[1732459744758,0.27169129,96850.0,96849.0,0.0028589]
[1732459744982,0.27169129,96850.0,96849.0,0.0008589]
[1732459745704,0.10948937,96829.0,96828.0,0.0017166]
[1732459745971,0.23688937,96829.0,96828.0,0.0017166]
[1732459747990,0.27674852,96829.0,96828.0,0.0017166]
[1732459748868,0.23688937,96829.0,96828.0,0.0017166]
[1732459751248,0.33890364,96829.0,96828.0,0.0017166]
[1732459755209,0.69530222,96829.0,96828.0,0.0017166]
[1732459755433,0.66966543,96829.0,96828.0,0.0017166]
[1732459755643,0.86966543,96829.0,96828.0,0.0017166]
[1732459755882,2.36966543,96829.0,96828.0,0.0017166]
[1732459758146,0.23691337,96807.0,96806.0,0.0007144]
[1732459761354,0.38691337,96807.0,96806.0,0.0007144]
[1732459762856,0.42842787,96807.0,96806.0,0.0007144]
[1732459763814,0.53044214,96807.0,96806.0,0.0007144]
[1732459764048,0.71120393,96807.0,96806.0,0.0007144]
[1732459764264,0.91120393,96807.0,96806.0,0.0007144]
[1732459764919,2.43200285,96807.0,96806.0,0.0007144]
[1732459766074,2.05124106,96807.0,96806.0,0.0007144]
[1732459766321,0.50351119,96807.0,96806.0,0.0007144]
[1732459766539,0.70972656,96807.0,96806.0,0.0007144]
[1732459766764,0.50351119,96807.0,96806.0,0.0007144]
[1732459767214,0.40771229,96807.0,96806.0,0.0007144]
[1732459767471,0.60771229,96807.0,96806.0,0.0007144]
[1732459770325,0.40771229,96807.0,96806.0,0.0007144]
[1732459771649,0.50972656,96807.0,96806.0,0.0007144]
[1732459771864,0.55134983,96807.0,96806.0,0.0007144]
[1732459772598,0.73211162,96807.0,96806.0,0.0007144]
[1732459772868,0.93211162,96807.0,96806.0,0.0007144]
[1732459773101,0.93211162,96807.0,96793.0,0.0017144]
[1732459773102,0.64028316,96799.0,96793.0,0.0017144]
[1732459773332,0.86609743,96799.0,96793.0,0.0017144]
[1732459773549,2.36609743,96799.0,96793.0,0.0017144]
[1732459776408,0.56410816,96776.0,96767.0,0.0017148]
[1732459776622,0.86612243,96776.0,96767.0,0.0017148]
[1732459777062,2.36612243,96776.0,96767.0,0.0017148]
[1732459777292,0.00621537,96739.0,96738.0,0.15303708]
[1732459777521,0.00621537,96744.0,96731.0,0.02009581]
[1732459777753,0.00621537,96732.0,96731.0,0.02009581]
[1732459777967,0.00621537,96732.0,96731.0,0.10279881]
[1732459778198,0.00621537,96732.0,96731.0,0.02009581]
[1732459778405,0.00621537,96732.0,96731.0,0.10279881]
[1732459778628,0.00621537,96732.0,96731.0,0.02009581]
[1732459778836,0.00621537,96732.0,96731.0,0.10279881]
[1732459779295,0.00621537,96732.0,96731.0,0.02009581]
[1732459779715,0.00621537,96739.0,96738.0,0.10193521]
[1732459779935,0.00621537,96739.0,96738.0,0.01923821]
[1732459780145,0.10958537,96739.0,96738.0,0.01923821]
[1732459780586,0.00621537,96739.0,96738.0,0.01923821]
[1732459781001,0.10958537,96739.0,96738.0,0.01923821]
[1732459781216,0.00621537,96739.0,96738.0,0.01923821]
[1732459781427,0.10958537,96739.0,96738.0,0.01923821]
[1732459781640,0.00621537,96739.0,96738.0,0.01923821]
[1732459782517,0.00621537,96739.0,96738.0,0.10193521]
[1732459782785,0.00621537,96744.0,96743.0,0.10193121]
[1732459782994,0.00621537,96744.0,96743.0,0.01923821]
[1732459783199,0.00621537,96744.0,96743.0,0.10193121]
[1732459783454,0.00621537,96745.0,96744.0,0.10193021]
[1732459784775,0.00621537,96745.0,96744.0,0.01923821]
[1732459785419,0.00621537,96745.0,96744.0,0.10193021]
[1732459785632,0.00621537,96745.0,96744.0,0.01923821]
[1732459786097,0.00621537,96745.0,96744.0,0.10193021]
[1732459787848,0.00621537,96745.0,96744.0,0.10192921]
[1732459788057,0.103355,96754.0,96744.0,0.10192921]
[1732459788274,0.206702,96758.0,96744.0,0.10192921]
[1732459788275,0.00621537,96745.0,96744.0,0.10192921]
[1732459789411,0.00621537,96748.0,96747.0,0.01923821]
[1732459789630,0.00621537,96748.0,96747.0,0.10192721]
[1732459789879,0.00621537,96744.0,96743.0,0.01923821]
[1732459790338,0.10958037,96744.0,96743.0,0.01923821]
[1732459791253,0.103368,96741.0,96740.0,0.01923821]
[1732459792185,0.00621537,96744.0,96740.0,0.01923821]
[1732459792638,0.00621537,96744.0,96743.0,0.10193121]
[1732459793119,0.00621537,96744.0,96743.0,0.10278881]
[1732459794281,0.00621537,96744.0,96743.0,0.28682858]
[1732459794492,0.00621537,96744.0,96743.0,0.10278881]
[1732459794936,0.00621537,96744.0,96743.0,0.28700868]
[1732459795178,0.00621537,96744.0,96743.0,0.10278881]
[1732459795693,0.0017152,96745.0,96744.0,0.10193021]
[1732459795930,0.0017152,96745.0,96744.0,0.20394448]
[1732459797935,0.0017152,96745.0,96744.0,0.18470627]
[1732459798198,0.0017152,96745.0,96744.0,0.20394448]
[1732459800718,0.0017152,96745.0,96744.0,0.48140829]
[1732459800953,0.0017152,96745.0,96744.0,0.22694448]
[1732459802928,0.00171477,96745.0,96744.0,0.63567665]
[1732459803383,0.00171477,96745.0,96744.0,0.22694448]
[1732459804281,0.00171477,96745.0,96744.0,0.37694448]
[1732459804518,0.00171477,96745.0,96744.0,0.60291599]
[1732459804733,0.00171477,96745.0,96744.0,0.81141599]
[1732459804961,0.00621537,96777.0,96776.0,0.01923821]
[1732459805202,0.10954537,96777.0,96776.0,0.01923821]
[1732459805419,0.00621537,96777.0,96776.0,0.01923821]
[1732459805648,0.00621537,96778.0,96777.0,0.01923821]
[1732459805877,0.00621537,96780.0,96779.0,0.082662]
[1732459806090,0.00621537,96776.0,96775.0,0.27688897]
[1732459806312,0.184925,96782.0,96777.0,0.082664]
[1732459806555,0.00621537,96776.0,96775.0,0.082665]
[1732459806807,0.00621537,96780.0,96778.0,0.082662]
[1732459807043,0.00621537,96781.0,96778.0,0.082663]
[1732459807274,0.00621537,96780.0,96779.0,0.27698149]
[1732459807516,0.00621537,96780.0,96779.0,0.082661]
[1732459807763,0.00621537,96780.0,96779.0,0.3596773]
[1732459807999,0.00621537,96780.0,96779.0,0.082661]
[1732459808250,0.00621537,96781.0,96780.0,0.01923821]
[1732459808658,0.00621537,96781.0,96780.0,0.29627074]
[1732459808659,0.00621537,96781.0,96780.0,0.01923821]
[1732459809013,0.00621537,96781.0,96780.0,0.10189821]
[1732459809213,0.00621537,96781.0,96780.0,0.29626957]
[1732459809622,0.00621537,96781.0,96780.0,0.37893057]
[1732459809867,0.00621537,96781.0,96780.0,0.29626957]
[1732459810114,0.00621537,96781.0,96780.0,0.37893057]
[1732459810336,0.00621537,96781.0,96780.0,0.10189921]
[1732459810766,0.00621537,96781.0,96780.0,0.01923821]
[1732459811200,0.10954137,96781.0,96780.0,0.27705861]
[1732459811407,0.00621537,96778.0,96776.0,0.27705861]
[1732459811624,0.103331,96776.0,96775.0,0.27705861]
[1732459811862,0.103331,96776.0,96750.0,0.3115001]
[1732459811863,0.103334,96773.0,96772.0,0.27705861]
[1732459812081,0.21288137,96775.0,96769.0,0.27705861]
[1732459812082,0.103337,96770.0,96769.0,0.27705861]
[1732459812294,0.08781537,96772.0,96767.0,0.27708657]
[1732459812295,0.10955437,96768.0,96767.0,0.27708657]
[1732459812523,0.10955437,96768.0,96767.0,0.27709189]
[1732459812743,0.10955437,96768.0,96754.0,0.10201427]
[1732459812744,0.00621537,96764.0,96762.0,0.27709189]
[1732459812981,0.10956037,96763.0,96762.0,0.27709189]
[1732459813451,0.00621537,96760.0,96759.0,0.01923821]